[Event "1st Semana Santa Torrevieja 2022"]
[Site "Torrevieja Alicante"]
[Date "2022.04.16"]
[Round "7.2"]
[White "Yuffa, Daniil"]
[Black "Dardha, Daniel"]
[Result "1/2-1/2"]
[ECO "E00"]
[WhiteElo "2576"]
[BlackElo "2541"]
[Annotator "TA"]
[PlyCount "63"]
[EventDate "2022.04.12"]
[EventType "swiss"]
[EventCountry "ESP"]
[SourceTitle "playchess.com"]
[Source "ChessBase"]
[SourceQuality "1"]
[TimeControl "5400+30"]

{[%evp 12,63,16,25,20,10,16,19,34,23,18,34,26,29,59,-25,-29,-59,-83,-95,-75,-162,-152,-145,12,0,5,0,3,2,21,0,39,0,0,0,0,0,66,69,66,66,72,48,72,59,50,24,36,0,0,0,0,0]} 1. d4 {[%emt 0:02:10]} Nf6 {[%emt 0:00:08]} 2. c4 {[%emt 0:00:06]} e6 {[%emt 0:00:05]} 3. g3 {[%emt 0:00:06]} Bb4+ {[%emt 0:00:07]} 4. Nd2 {[%emt 0:00:48]} c5 {[%emt 0:01:46]} 5. a3 {[%emt 0:02:23]} Bxd2+ {[%emt 0:00:06]} 6. Qxd2 {[%emt 0:00:06]} cxd4 {[%emt 0:00:05]} 7. Nf3 {[%emt 0:00:37]} d5 {[%emt 0:00:24] E00: Catalan Bogo-Indian (3 g3 Bb4+).} 8. cxd5 {[%emt 0:01:19] 8.Bg2 might become the main line.} e5 {[%emt 0:00:43]} 9. Qg5 {[%emt 0:07:10] [#]} Nbd7 $146 {[%emt 0:08:24][%cal Bb8d7,Bd7c5,Bc5b3][%mdl 32]} ({Predecessor:} 9... O-O 10. Qxe5 d3 11. e3 Bg4 12. Bg2 Re8 13. Qd4 Bxf3 14. Bxf3 Nc6 15. Qxd3 Ne5 16. Qe2 Nxf3+ 17. Qxf3 Ne4 18. O-O Qxd5 {½-½ (18) Chekletsov,I (2373)-Turov,M (2584) Hofheim 2019}) 10. Qxg7 {[%emt 0:17:21]} Rg8 {[%emt 0:00:07]} 11. Qh6 {[%emt 0:00:02]} Rg6 $1 {[%emt 0:00:10]} 12. Qd2 {[%emt 0:01:05]} Nc5 $1 {[%emt 0:01:25] aiming for ...Nb3.} 13. Qc2 {[%emt 0:17:59] Prevents Nb3.} (13. Nxe5 Qxd5 14. Nxg6 Qxh1 $17) ({Better is} 13. Qd1 $1 $14) 13... Qxd5 $11 {[%emt 0:00:15] Threatens to win with ...Nb3.} 14. b4 {[%emt 0:01:42]} Nb3 {[%emt 0:07:50] Pair of Knights!} 15. Rb1 {[%emt 0:00:08] [#]} Be6 $1 {[%emt 0:00:44] ...Rc8 is the strong threat.} ({But not} 15... Nxc1 $6 16. Rxc1 Ne4 17. Bg2 $11) 16. Bg2 {[%emt 0:08:29]} (16. Qxb3 $17 {keeps fighting.} Qxb3 17. Rxb3 Bxb3 18. Nxe5) 16... Rc8 $19 {[%emt 0:02:14]} 17. Qd1 {[%emt 0:07:29] [#]} e4 $2 {[%emt 0:12:56]} ({Don't play} 17... Nxc1 18. Rxc1 Rxc1 19. Qxc1 $14) (17... Bf5 $1 $17 18. Rxb3 Bc2) 18. Nh4 {[%emt 0:02:05]} Rg8 $132 {[%emt 0:06:47][%mdl 2048] Black is not keeping still} 19. O-O {[%emt 0:00:55][%cal Ob1b3]} Nxc1 {[%emt 0:03:30]} 20. Rxc1 {[%emt 0:00:08]} Ke7 {[%emt 0:02:34]} 21. Qd2 {[%emt 0:04:30]} Rgd8 {[%emt 0:05:51]} 22. Rxc8 {[%emt 0:00:26]} (22. Qf4 {seems wilder.} a6 23. Rfe1 Rxc1 24. Rxc1 Rc8 25. Rxc8 Bxc8 26. h3) 22... Rxc8 {[%emt 0:01:09]} ({Don't take} 22... Bxc8 23. Rc1 Qe5 24. Rc5 $16) 23. Rd1 {[%emt 0:00:30]} Qe5 {[%emt 0:05:55]} 24. f3 {[%emt 0:05:57]} exf3 {[%emt 0:01:35]} (24... e3 $11 25. Qe1 Rc2) 25. Nxf3 $14 {[%emt 0:00:06][%cal Bh4f3,Bf3d4,Bd4f5][%mdl 32]} Qe3+ {[%emt 0:00:04]} 26. Qxe3 {[%emt 0:00:43]} dxe3 {[%emt 0:00:04]} 27. Nd4 {[%emt 0:00:37] Against Rc2} Rc3 {[%emt 0:03:32]} 28. Bxb7 {[%emt 0:00:39]} Rxa3 {[%emt 0:00:31]} 29. Kg2 {[%emt 0:00:55]} Ra2 {[%emt 0:01:56]} 30. Rd3 {[%emt 0:07:45]} Bd5+ {[%emt 0:07:38]} 31. Bxd5 {[%emt 0:00:05]} Nxd5 {[%emt 0:00:04]} 32. Nf5+ {[%emt 0:07:22] Weighted Error Value: White=0.16 (very precise) /Black=0.22 (precise)} 1/2-1/2

[Event "1st Semana Santa Torrevieja 2022"]
[Site "Torrevieja Alicante"]
[Date "2022.04.16"]
[Round "7.3"]
[White "Iturrizaga Bonelli, Eduardo"]
[Black "Sabuk, Piotr"]
[Result "1-0"]
[ECO "A20"]
[WhiteElo "2595"]
[BlackElo "2411"]
[Annotator "TA"]
[PlyCount "109"]
[EventDate "2022.04.12"]
[EventType "swiss"]
[EventCountry "ESP"]
[SourceTitle "playchess.com"]
[Source "ChessBase"]
[SourceQuality "1"]
[TimeControl "5400+30"]

{[%evp 9,109,0,7,4,16,20,9,21,36,7,31,37,39,20,14,24,21,23,44,34,35,15,62,42,32,35,41,40,36,33,31,22,29,29,32,22,26,29,25,31,24,0,0,0,10,4,14,3,12,0,7,0,4,0,0,0,24,15,40,40,47,28,44,0,47,36,36,32,44,42,205,195,214,214,194,210,269,259,262,262,714,707,689,687,726,595,667,587,773,767,766,773,771,683,6509,6829,5879,5289,4307,4134,1463,957]} 1. c4 {[%emt 0:00:03]} e5 {[%emt 0:00:17]} 2. g3 {[%emt 0:00:42]} c6 {[%emt 0:00:21]} 3. d4 {[%emt 0:00:18]} e4 {[%emt 0:00:36]} 4. d5 {[%emt 0:00:11]} Bb4+ {[%emt 0:01:18]} 5. Bd2 {[%emt 0:00:09]} Qe7 {[%emt 0:01:27]} 6. e3 {[%emt 0:01:02] A20: English Opening: 1...e5.} Nf6 {[%emt 0:03:36]} 7. Bxb4 {[%emt 0:04:39]} Qxb4+ {[%emt 0:00:07]} 8. Qd2 {[%emt 0:00:01] The position is equal.} Na6 {[%emt 0:06:11][%cal Bb8a6,Ba6c5,Bc5e6][%mdl 32] [#]} 9. Nc3 $146 {[%emt 0:06:50][%cal Bb1c3,Bc3a2,Ba2c1,Bc1b3,Bb3c5][%mdl 32]} ({Predecessor:} 9. a3 Qxd2+ 10. Nxd2 Nc5 11. b4 Na4 12. Bg2 cxd5 13. cxd5 a5 14. bxa5 Rxa5 15. Nxe4 Nxe4 16. Bxe4 {½-½ (26) Rodshtein,M (2628)-Predojevic,B (2603) Chess.com INT 2020}) 9... O-O {[%emt 0:02:15]} 10. d6 {[%emt 0:07:24]} Rb8 {[%emt 0:06:52]} 11. a3 {[%emt 0:18:47]} Qb3 {[%emt 0:02:56]} 12. Na2 {[%emt 0:00:06]} Nc5 {[%emt 0:07:36]} 13. Nc1 $1 {[%emt 0:01:22] Prevents Nd3+.} Qb6 {[%emt 0:03:50]} 14. b4 {[%emt 0:14:58]} Ne6 {[%emt 0:00:50]} 15. Be2 {[%emt 0:00:22]} a5 {[%emt 0:06:41]} (15... Ne8 $11) 16. Nb3 {[%emt 0:02:18]} axb4 {[%emt 0:01:47]} 17. axb4 {[%emt 0:00:04]} c5 {[%emt 0:00:44]} 18. Nxc5 {[%emt 0:05:14]} Nxc5 {[%emt 0:00:36]} 19. bxc5 {[%emt 0:00:05]} Qxc5 {[%emt 0:00:10]} 20. Nh3 {[%emt 0:01:41]} b6 {[%emt 0:05:12] Inhibits Ra5.} 21. O-O {[%emt 0:01:37]} Bb7 {[%emt 0:02:05]} 22. Rfb1 {[%emt 0:03:35] Strongly threatening Rb5.} Bc6 {[%emt 0:04:19] Inhibits Rb5.} 23. Qd4 {[%emt 0:00:25]} Rfc8 {[%emt 0:11:57]} 24. Nf4 {[%emt 0:02:10]} Ne8 {[%emt 0:05:04]} 25. Rd1 {[%emt 0:01:28]} Qxd4 {[%emt 0:03:04]} 26. Rxd4 {[%emt 0:00:38]} g6 {[%emt 0:00:15]} 27. Rb1 {[%emt 0:04:58]} Kg7 {[%emt 0:02:18]} 28. g4 {[%emt 0:00:52]} h6 {[%emt 0:04:11]} (28... Kf6 {with more complications.} 29. Kg2 Ng7 30. Rd2 Ne6) 29. h4 {[%emt 0:02:45]} Nf6 {[%emt 0:18:25]} 30. Kg2 {[%emt 0:01:27]} Re8 {[%emt 0:00:00]} 31. Kg3 {[%emt 0:03:15]} Re5 {[%emt 0:00:00]} 32. Rd2 {[%emt 0:00:39]} Ne8 {[%emt 0:00:00]} 33. Bf1 {[%emt 0:00:14]} Kf6 {[%emt 0:00:00]} 34. Ne2 {[%emt 0:00:35]} Ba8 {[%emt 0:00:00]} 35. Nc3 {[%emt 0:03:19]} (35. Rdd1 {feels hotter.} Ra5 36. Rb4 Ke5 37. Nd4) 35... Bc6 {[%emt 0:00:00]} 36. Ne2 {[%emt 0:00:17][%cal Bc3e2,Be2d4,Bd4b5,Bb5a7][%mdl 32]} Ba8 {[%emt 0:00:00]} 37. Rb4 {[%emt 0:02:05]} (37. Rbb2 {seems wilder.} Ra5 38. Rb4 Ke5 39. Nd4) 37... Rc5 {[%emt 0:00:00]} 38. Nd4 {[%emt 0:00:42]} (38. Bg2 {keeps more tension.} Ke5 39. Nc3 b5 40. Bf1) 38... Rcc8 {[%emt 0:02:02]} 39. Nb5 {[%emt 0:03:17]} Bc6 $2 {[%emt 0:01:06] [#] Loses the game.} (39... Rc5 $14) 40. Na7 $18 {[%emt 0:00:28]} Rd8 {[%emt 0:00:16]} 41. c5 {[%emt 0:00:57]} ({Much less strong is} 41. Nxc6 dxc6 42. d7 Nc7) 41... Ke5 {[%emt 0:00:50]} 42. cxb6 {[%emt 0:07:43]} Nxd6 {[%emt 0:00:06]} 43. Rbd4 {[%emt 0:00:03]} Nb7 {[%emt 0:00:40]} 44. Bc4 {[%emt 0:00:13]} Na5 $2 {[%emt 0:01:04]} (44... Kf6 45. Ba2 Kg7) 45. Nxc6+ {[%emt 0:00:38] White is clearly winning.} Nxc6 {[%emt 0:00:12]} 46. Rd6 {[%emt 0:00:05][%csl Gc4,Gd6][%cal Rd2d5] [#]} Nb4 {[%emt 0:01:19] Against R2d5+} 47. Bxf7 {[%emt 0:01:46] g5 would kill now.} Rf8 {[%emt 0:00:52]} 48. Bxg6 {[%emt 0:00:39]} Nd3 {[%emt 0:00:15]} 49. Rxd7 {[%emt 0:00:14]} Rf3+ {[%emt 0:00:39]} 50. Kg2 {[%emt 0:00:04]} Rxb6 {[%emt 0:00:37]} 51. R7xd3 {[%emt 0:00:20]} Rxg6 {[%emt 0:00:26]} 52. Rd5+ {[%emt 0:00:04]} Kf6 {[%emt 0:00:26]} 53. Rd6+ {[%emt 0:00:03]} Kg7 {[%emt 0:00:26]} 54. Rxg6+ {[%emt 0:00:06]} Kxg6 {[%emt 0:00:04]} 55. Rd4 {[%emt 0:00:04] Weighted Error Value: White=0.12 (very precise) /Black=0.19 (very precise)} 1-0

[Event "1st Semana Santa Torrevieja 2022"]
[Site "Torrevieja Alicante"]
[Date "2022.04.16"]
[Round "7.4"]
[White "Chatalbashev, Boris"]
[Black "Fernandez Garcia, Jose Miguel"]
[Result "1-0"]
[ECO "E43"]
[WhiteElo "2515"]
[BlackElo "2348"]
[Annotator "TA"]
[PlyCount "97"]
[EventDate "2022.04.12"]
[EventType "swiss"]
[EventCountry "ESP"]
[SourceTitle "playchess.com"]
[Source "ChessBase"]
[SourceQuality "1"]
[TimeControl "5400+30"]

{[%evp 17,97,14,28,0,0,0,0,0,0,0,0,0,3,14,1,0,50,49,52,45,50,46,38,43,77,25,26,33,30,14,21,2,44,40,49,43,73,34,28,0,62,26,128,128,134,137,132,92,78,60,51,62,60,50,200,222,271,265,345,328,399,361,338,361,330,319,308,219,987,942,1000,973,773,397,1245,1245,1729,1291,8150,7264,5065,2268]} 1. d4 {[%emt 0:00:04]} Nf6 {[%emt 0:00:07]} 2. c4 {[%emt 0:00:05]} e6 {[%emt 0:01:13]} 3. Nc3 {[%emt 0:00:08]} Bb4 {[%emt 0:00:25]} 4. Nf3 {[%emt 0:00:08]} b6 {[%emt 0:01:26]} 5. e3 {[%emt 0:00:17]} Ne4 {[%emt 0:01:19]} 6. Qc2 {[%emt 0:00:06]} Bb7 {[%emt 0:00:17]} 7. Bd3 {[%emt 0:00:07]} Bxc3+ {[%emt 0:00:33]} 8. bxc3 {[%emt 0:00:07]} f5 {[%emt 0:00:07]} 9. O-O {[%emt 0:00:09]} O-O {[%emt 0:00:06]} 10. c5 {[%emt 0:00:05] E43: Nimzo-Indian: Rubinstein: 4...b6.} bxc5 {[%emt 0:02:40]} 11. Rb1 {[%emt 0:00:06]} Qc8 {[%emt 0:02:13]} 12. Ba3 {[%emt 0:00:28] The position is equal.} d6 {[%emt 0:05:44]} 13. dxc5 {[%emt 0:00:07]} Nxc5 {[%emt 0:03:24]} 14. Bxc5 {[%emt 0:00:09]} Bxf3 {[%emt 0:00:25]} 15. gxf3 {[%emt 0:00:07]} dxc5 {[%emt 0:00:05] [#]} 16. Qa4 $146 {[%emt 0:01:19]} ({Predecessor:} 16. Qb3 Nc6 17. Qb5 Ne5 18. Be2 f4 19. Qxc5 Rf5 20. Qd4 Qe8 21. exf4 Ng6 22. Kh1 Rxf4 {0-1 (109) Saduakassova,D (2407)-Svane,R (2529) Doha 2015}) 16... Qe8 {[%emt 0:09:55]} (16... Nd7 $11) 17. Qxe8 $14 {[%emt 0:07:28]} Rxe8 {[%emt 0:00:32]} 18. Rfd1 {[%emt 0:19:53]} a6 {[%emt 0:18:02] Against Bb5} 19. Bc2 {[%emt 0:04:17][%mdl 1024] White has compensation.} Ra7 {[%emt 0:04:19] Prevents Rb7.} 20. Ba4 {[%emt 0:02:44]} Rf8 {[%emt 0:00:08]} 21. f4 {[%emt 0:05:25]} (21. Rb2 $16) 21... Kf7 $11 {[%emt 0:00:42]} 22. Rd2 {[%emt 0:05:05]} Ke7 {[%emt 0:00:18]} 23. Kf1 {[%emt 0:10:05]} Rc8 {[%emt 0:08:00]} 24. Ke2 {[%emt 0:00:47]} Rf8 {[%emt 0:04:04]} 25. h4 $36 {[%emt 0:00:23][%mdl 2048] White fights for an advantage.} Rc8 {[%emt 0:03:05]} 26. Rg1 {[%emt 0:04:04]} Kf7 {[%emt 0:06:58]} 27. Rgd1 {[%emt 0:03:18] 0x0.00299f40aea5dp-1022s more active pieces. The black rooks are badly placed.} Ke7 {[%emt 0:02:26]} 28. Rg1 {[%emt 0:06:41]} Kf7 {[%emt 0:07:38]} 29. Rb2 {[%emt 0:01:27]} Rg8 {[%emt 0:15:42]} (29... c6 $11 {keeps the balance.}) 30. Rgb1 $16 {[%emt 0:01:40]} Ra8 {[%emt 0:00:01]} 31. Rb7 {[%emt 0:00:19]} Rc8 {[%emt 0:00:04]} 32. Kd3 {[%emt 0:02:51]} Ke7 {[%emt 0:01:29]} 33. Kc4 {[%emt 0:00:10]} (33. Rg1 {seems wilder.} g6 34. h5 Nd7 35. hxg6 hxg6 36. Rxg6 c4+ 37. Kxc4 Nb6+ 38. Kb3) 33... Nd7 {[%emt 0:00:01]} 34. Bxd7 {[%emt 0:00:17]} Kxd7 {[%emt 0:00:01]} 35. Kxc5 $14 {[%emt 0:00:15][%mdl 4096] Endgame And now Rg1 would win. KRR-KRR} a5 {[%emt 0:01:10] [#] A mistake that costs the game.} (35... Re8 $1 $14) 36. Rd1+ $1 $18 {[%emt 0:05:33]} Ke7 {[%emt 0:00:37]} 37. a4 {[%emt 0:00:55]} Ra6 {[%emt 0:02:07]} 38. c4 {[%emt 0:04:30]} Rb6 {[%emt 0:01:36]} 39. Rxb6 {[%emt 0:06:53]} cxb6+ {[%emt 0:00:01]} 40. Kxb6 {[%emt 0:00:08]} Rxc4 {[%emt 0:00:01]} 41. Kxa5 {[%emt 0:00:11] KR-KR} Rc2 {[%emt 0:01:16]} 42. Rb1 {[%emt 0:00:34]} Kf6 $2 {[%emt 0:00:42]} (42... Rxf2 43. Kb6 e5 44. fxe5 f4) 43. Kb6 {[%emt 0:00:34]} e5 {[%emt 0:00:25]} 44. fxe5+ {[%emt 0:02:53]} Kxe5 {[%emt 0:00:01]} 45. f3 {[%emt 0:02:27] [#] Threatens to win with a5.} Rc4 $2 {[%emt 0:01:02]} (45... f4) 46. a5 {[%emt 0:00:37][%cal Ba4a5,Ba5a6,Ba6a7][%mdl 32] White is clearly winning.} Rxh4 {[%emt 0:00:01]} 47. Rb5+ {[%emt 0:00:10]} Kd6 {[%emt 0:01:01]} 48. a6 {[%emt 0:00:17] White threatens a7 and mate.} Ra4 {[%emt 0:00:27]} 49. a7 {[%emt 0:08:37] Weighted Error Value: White=0.29 (precise) /Black=0.26 (precise)} 1-0

[Event "1st Semana Santa Torrevieja 2022"]
[Site "Torrevieja Alicante"]
[Date "2022.04.16"]
[Round "7.5"]
[White "Carbonell Sancho, Marc"]
[Black "Nasuta, Grzegorz"]
[Result "0-1"]
[ECO "C54"]
[WhiteElo "2215"]
[BlackElo "2530"]
[Annotator "TA"]
[PlyCount "74"]
[EventDate "2022.04.12"]
[EventType "swiss"]
[EventCountry "ESP"]
[SourceTitle "playchess.com"]
[Source "ChessBase"]
[SourceQuality "1"]
[TimeControl "5400+30"]

{[%evp 9,74,22,17,17,21,10,24,14,13,16,6,-14,-20,0,9,-22,50,-13,43,0,0,0,25,-83,60,52,59,13,26,-16,18,-17,0,-43,-42,-40,-40,-41,-41,-41,-41,-48,-41,-65,-50,-256,-229,-1093,-304,-289,-290,-454,-449,-359,-267,-1076,-226,-198,-213,-1831,-1831,-1333,-1203,-29979,-29980,-29983,-29984]} 1. e4 {[%emt 0:09:06]} e5 {[%emt 0:00:30]} 2. Nf3 {[%emt 0:00:06]} Nc6 {[%emt 0:00:05]} 3. Bc4 {[%emt 0:00:06]} Nf6 {[%emt 0:00:08]} 4. d3 {[%emt 0:00:05]} Bc5 {[%emt 0:00:31]} 5. c3 {[%emt 0:00:06]} a6 {[%emt 0:01:38]} 6. a4 {[%emt 0:00:06] C54: Giuoco Piano: 4 c3 Nf6, main lines with 5 d4 and 5 d3.} d6 {[%emt 0:01:41]} 7. h3 {[%emt 0:00:25]} h6 {[%emt 0:00:25]} 8. O-O {[%emt 0:00:32] White has an edge.} Ba7 {[%emt 0:00:46]} 9. Re1 {[%emt 0:00:12]} g5 {[%emt 0:02:39] [#]} 10. b4 $146 {[%emt 0:15:49]} ({Predecessor:} 10. Be3 Bxe3 11. Rxe3 g4 12. hxg4 Nxg4 13. Re2 Rg8 14. Nbd2 Qf6 15. Nf1 Qg6 16. g3 {½-½ (37) Ponomariov,R (2664)-Fressinet,L (2655) Chess.com INT 2019}) 10... g4 {[%emt 0:04:25]} 11. hxg4 {[%emt 0:00:06]} Bxg4 {[%emt 0:01:17]} 12. Be3 {[%emt 0:05:36]} Nh5 {[%emt 0:08:09]} (12... Bxe3 $11 13. Rxe3 Nh5) 13. Nbd2 {[%emt 0:20:28]} (13. Bxa7 $14 Rxa7 14. g3) 13... Qf6 {[%emt 0:12:55]} ({Black should play} 13... Bxe3 $11 14. Rxe3 Nf4) 14. b5 {[%emt 0:02:57]} Na5 {[%emt 0:06:38]} 15. Bd5 {[%emt 0:01:06]} Rg8 {[%emt 0:08:02] aiming for ...Bh3.} 16. Kf1 {[%emt 0:15:03]} (16. d4 $11 {keeps the balance.}) 16... Qg7 {[%emt 0:16:46]} (16... Bxe3 $17 17. Rxe3 Nf4) 17. d4 $14 {[%emt 0:07:35]} Bb6 {[%emt 0:21:54]} 18. bxa6 {[%emt 0:03:19]} (18. dxe5 $14 Bxe3 19. Rxe3) 18... Rxa6 $11 {[%emt 0:00:13]} 19. g3 {[%emt 0:02:16]} Bd7 {[%emt 0:06:05]} 20. dxe5 {[%emt 0:03:51]} dxe5 {[%emt 0:00:55]} 21. Rb1 {[%emt 0:00:03] [#]} Nxg3+ $1 {[%emt 0:02:33]} 22. fxg3 {[%emt 0:00:17]} Qxg3 {[%emt 0:00:11][%csl Gg8][%cal Rg3g2]} 23. Ke2 {[%emt 0:02:21]} Bxe3 {[%emt 0:00:06]} 24. Kxe3 {[%emt 0:00:19]} Qf4+ {[%emt 0:00:00]} (24... c6 25. Rg1 $1 Qf4+ 26. Kd3 $14) 25. Kd3 {[%emt 0:06:59]} Rd6 $1 {[%emt 0:00:01][%mdl 1024] White must now prevent ...c6. Black has compensation.} 26. c4 {[%emt 0:00:06]} Rg3 {[%emt 0:02:02] Hoping for ...c6.} 27. Rf1 $2 {[%emt 0:01:01] This costs White the game.} (27. Rg1 $1 $15 Rdg6 28. Qe2) 27... c6 $19 {[%emt 0:02:44][%mdl 64] Pin} 28. c5 $2 {[%emt 0:00:32]} (28. Qe2 Bg4 29. Kc3) 28... Rf6 $2 {[%emt 0:00:34]} (28... Rxd5+ 29. Kc2 Rxc5+ 30. Kb2 Qe3) 29. Ba2 {[%emt 0:02:01]} Bg4 $1 {[%emt 0:00:01]} (29... Be6 30. Bxe6 Rxe6 31. Qe2 $18) 30. Kc3 {[%emt 0:01:18]} (30. Rc1 $142) 30... Qe3+ {[%emt 0:00:31]} (30... Bxf3 $2 31. Rxf3 Rxf3+ 32. Nxf3 Qe3+ 33. Kb4 Rxf3 34. Bxf7+ Rxf7 35. Qd6 $19) 31. Kb4 {[%emt 0:00:23] Qe1 is the strong threat.} Bxf3 {[%emt 0:00:39]} 32. Nxf3 {[%emt 0:00:51]} (32. Rxf3 Rgxf3 33. Nxf3 Rxf3 34. Bxf7+ Rxf7 35. Qd6) 32... Rgxf3 $2 $40 {[%emt 0:00:14][%mdl 128] Black wants a kill.} (32... b6 {[%csl Gb6][%cal Re3c5]} 33. Rc1 Rgxf3 34. Rxf3 Rxf3 35. Qxf3 Qxf3 36. cxb6 Nb7 37. Rxc6 Qxe4+ 38. Rc4 Qe1+ 39. Rc3 Qd2) 33. Rxf3 {[%emt 0:00:37]} Rxf3 {[%emt 0:00:03][%csl Gf3][%cal Re3c3,Bf6f3,Bf3c3,Bc3c5][%mdl 32] Dancing on a razor blade.} 34. Qc1 {[%emt 0:00:43] [#] Against Qc3+} (34. Bxf7+ Rxf7 35. Qd6) 34... Qd4+ $1 {[%emt 0:00:42]} ({Weaker is} 34... Qxc1 35. Rxc1 Rf2 36. Bb1 $18) 35. Kxa5 {[%emt 0:00:35]} Rc3 {[%emt 0:00:01]} 36. Bxf7+ {[%emt 0:00:31] [#]} Kd8 $1 {[%emt 0:01:38]} ({And not} 36... Kxf7 37. Qf1+ Ke8 38. Kb6 $15 (38. Rxb7 {gets mated.} Rxc5+)) 37. Qd1 {[%emt 0:00:54]} Rxc5+ {[%emt 0:00:06] Weighted Error Value: White=1.03/Black=0.61} 0-1

[Event "1st Semana Santa Torrevieja 2022"]
[Site "Torrevieja Alicante"]
[Date "2022.04.16"]
[Round "7.6"]
[White "Vasquez Schroeder, Rodrigo"]
[Black "Suarez Uriel, Adrian"]
[Result "1-0"]
[ECO "B67"]
[WhiteElo "2493"]
[BlackElo "2348"]
[Annotator "TA"]
[PlyCount "79"]
[EventDate "2022.04.12"]
[EventType "swiss"]
[EventCountry "ESP"]
[SourceTitle "playchess.com"]
[Source "ChessBase"]
[SourceQuality "1"]
[TimeControl "5400+30"]

{[%evp 22,79,46,44,63,46,41,41,40,62,43,9,14,16,12,8,14,21,77,75,64,64,67,51,134,0,0,0,102,0,0,0,0,0,172,176,230,215,250,255,252,232,612,606,1274,302,315,204,197,189,160,135,129,125,189,167,230,93,982,963]} 1. e4 {[%emt 0:00:02]} c5 {[%emt 0:03:50]} 2. Nf3 {[%emt 0:00:04]} d6 {[%emt 0:00:03]} 3. d4 {[%emt 0:00:26]} cxd4 {[%emt 0:00:05]} 4. Nxd4 {[%emt 0:00:04]} Nf6 {[%emt 0:00:04]} 5. Nc3 {[%emt 0:00:04]} Nc6 {[%emt 0:00:02]} 6. Bg5 {[%emt 0:00:25]} e6 {[%emt 0:00:06]} 7. Qd2 {[%emt 0:00:28]} a6 {[%emt 0:00:05]} 8. O-O-O {[%emt 0:00:21]} Bd7 {[%emt 0:00:07]} 9. f4 {[%emt 0:01:16]} b5 {[%emt 0:00:18]} 10. Bxf6 {[%emt 0:00:08]} gxf6 {[%emt 0:00:06]} 11. Kb1 {[%emt 0:01:31]} Qb6 {[%emt 0:01:58]} 12. Nce2 {[%emt 0:01:24]} O-O-O {[%emt 0:00:56] B67: Sicilian: Richter-Rauzer: 7...a6 8 0-0-0 Bd7, lines without 9 f4 Be7.} 13. g3 {[%emt 0:00:35]} Kb8 {[%emt 0:03:06]} 14. Bg2 {[%emt 0:01:12]} h5 {[%emt 0:01:20] White is slightly better.} 15. Nxc6+ {[%emt 0:04:00]} Bxc6 {[%emt 0:01:25]} 16. Nd4 {[%emt 0:05:59][%cal Od2a5] Against f5. Threatening Qa5!} Bb7 {[%emt 0:02:36] [#]} 17. Qe2 $146 {[%emt 0:06:05]} ({Predecessor:} 17. a3 Be7 18. f5 e5 19. Ne2 Rc8 20. Nc3 Qc7 21. Qe2 Qc4 22. Rd3 h4 23. g4 {0-1 (34) Tsuboi,E (2340)-Galati,M Sao Paulo 1991}) 17... Rc8 {[%emt 0:11:47]} 18. h4 {[%emt 0:04:25]} Rc4 {[%emt 0:04:04]} 19. c3 {[%emt 0:03:50]} Rc5 {[%emt 0:07:50]} (19... Rg8 $11 {remains equal.}) 20. Rd3 $16 {[%emt 0:05:53]} Be7 {[%emt 0:05:25]} 21. Rhd1 {[%emt 0:00:58]} a5 {[%emt 0:00:51]} 22. a3 {[%emt 0:01:47]} Ba6 {[%emt 0:02:19]} (22... Rhc8 $14) 23. Nb3 {[%emt 0:16:39]} (23. b4 $1 $16 {[%cal Rb4c5]} Rc4 24. Bf3) 23... Rc6 $11 {[%emt 0:02:50]} 24. Nd4 {[%emt 0:03:44]} Rc7 {[%emt 0:03:18]} (24... Rc5 $1 $11) 25. Nc2 {[%emt 0:01:17]} (25. b4 $1 $16) 25... b4 $1 {[%emt 0:01:01]} 26. axb4 {[%emt 0:00:35]} Bxd3 {[%emt 0:00:12]} 27. Rxd3 {[%emt 0:03:18]} a4 $2 {[%emt 0:00:04]} (27... axb4 $11 {and Black has nothing to worry.} 28. Nxb4 Rc4) 28. Na3 {[%emt 0:04:46]} Rhc8 {[%emt 0:01:17]} (28... Rd7 $142 29. Nc2 Rb7) 29. Ka2 {[%emt 0:00:34]} Rg8 {[%emt 0:12:01]} 30. Qxh5 {[%emt 0:07:29]} Qf2 {[%emt 0:00:44]} 31. Bf3 {[%emt 0:04:53]} Rxg3 $2 {[%emt 0:01:57]} (31... Rd8 32. Be2 (32. Qxf7 Qf1 $11) 32... Qg2) 32. Qb5+ $18 {[%emt 0:00:38]} Ka8 {[%emt 0:00:06]} 33. Qxa4+ $2 {[%emt 0:00:39]} (33. e5+ Rxf3 34. exd6) 33... Kb7 {[%emt 0:01:09]} 34. Be2 {[%emt 0:04:00] Black must now prevent Rxg3. The board is on fire.} Rg8 {[%emt 0:01:59]} 35. Qb5+ {[%emt 0:02:12]} (35. Rd2 Qb6 $16) 35... Qb6 {[%emt 0:00:47]} 36. Bh5 {[%emt 0:02:40]} Bf8 {[%emt 0:01:46]} 37. Qe8 {[%emt 0:01:15] &Bianco is more active.} Re7 {[%emt 0:00:39] [#]} (37... Rh8 $16 {was worth a try.}) 38. Qa4 $1 {[%emt 0:00:16] And now Nc4 would win.} Rc7 {[%emt 0:00:21] [#] Inhibits Nc4.} (38... Qa7 $142 39. Qb5+ Qb6) 39. Bf3 {[%emt 0:00:27]} ({Weaker is} 39. Nb5 Rc8 40. Na3 (40. Bxf7 $2 Ra8 $19) 40... Rg7 $16) (39. Bxf7 $1 $18 {[%mdl 512]} Rxf7 40. Nc4) 39... Bh6 $2 {[%emt 0:00:43][%mdl 8192] [#]} (39... Qa6 $16 40. Qb5+ Qxb5 41. Nxb5 Rd7) 40. Rxd6 $1 {[%emt 0:00:40][%mdl 512] Weighted Error Value: White=0.41/Black=0.45} 1-0